bitfinex/quotes_ETHUSD_20250508
["timestamp","ask_amount","ask_price","bid_price","bid_amount"]
[1746739108116,0.8017,2211.9,2210.1,7.79686943]
[1746739108428,4.52224892,2211.3,2210.5,3.0]
[1746739108616,4.52325447,2210.8,2210.1,7.79686943]
[1746739108814,5.52321829,2211.6,2210.2,0.0452303]
[1746739109131,26.677,2213.2,2210.9,0.1]
[1746739109285,5.52321829,2212.1,2210.6,0.1]
[1746739109488,10.436,2212.0,2210.7,0.14521635]
[1746739109791,4.52060669,2212.1,2211.6,0.1]
[1746739109986,4.51977401,2212.5,2211.4,0.1]
[1746739110220,10.04443178,2211.8,2210.5,0.1]
[1746739110387,4.5234541,2210.7,2210.6,0.1]
[1746739110593,3.0,2212.4,2210.6,0.1]
[1746739110594,4.51773209,2213.5,2211.3,0.7662]
[1746739110829,2.28025817,2215.8,2211.3,0.7662]
[1746739110830,16.281,2215.1,2212.7,0.1]
[1746739111129,16.281,2215.1,2212.8,0.04518225]
[1746739111130,5.52321829,2214.1,2212.8,0.04518225]
[1746739111287,16.281,2215.1,2212.5,0.7662]
[1746739111288,4.51956973,2212.6,2212.5,0.7662]
[1746739111488,4.51934591,2212.8,2211.9,0.1]
[1746739111832,4.51934591,2212.8,2211.8,0.7662]
[1746739111833,5.52321829,2213.3,2212.1,0.1]
[1746739112033,0.8279,2212.4,2210.9,0.1]
[1746739112216,5.52321829,2211.5,2210.3,0.7662]
[1746739112533,4.52693526,2209.0,2208.9,0.8662]
[1746739112733,4.52488687,2210.0,2208.5,0.1]
[1746739112900,4.52509163,2209.9,2208.6,0.1]
[1746739113112,5.52321829,2210.0,2208.5,0.1]
[1746739113442,4.52406804,2210.4,2208.9,0.1]
[1746739113590,4.5271402,2208.9,2208.8,0.1]
[1746739113795,4.52734516,2208.8,2208.7,0.1]
[1746739113991,4.52714932,2208.9,2208.5,0.1]
[1746739114219,27.6799,2210.5,2208.7,0.1]
[1746739114437,5.52321829,2210.3,2208.8,0.1]
[1746739114610,4.5252964,2209.8,2208.6,0.1]
[1746739114940,4.52275634,2211.1,2209.8,0.1]
[1746739115144,4.52283139,2211.1,2209.9,0.14523859]
[1746739115442,0.79470022,2211.3,2209.9,0.1]
[1746739115605,0.79470022,2211.3,2209.5,0.7727]
[1746739115606,0.00160022,2211.3,2210.5,0.1]
[1746739115812,0.00160022,2211.3,2210.9,0.1]
[1746739116002,0.00160022,2211.3,2210.7,0.1]
[1746739116340,0.00160022,2211.3,2209.9,0.8727]
[1746739116498,0.7931,2211.0,2209.9,0.1]
[1746739116694,0.00160022,2211.3,2209.8,0.1]
[1746739116912,0.00160022,2211.3,2209.3,0.7727]
[1746739116913,0.00160022,2211.3,2210.6,0.1]
[1746739117221,4.52365873,2210.6,2210.5,0.1]
[1746739117429,4.52520179,2209.9,2209.3,6.39591829]
[1746739117608,4.52360658,2210.7,2210.0,0.1]
[1746739117939,4.52243125,2211.2,2210.0,0.1]
[1746739118157,4.52260773,2211.2,2210.5,0.1]
[1746739118362,0.00160022,2211.3,2210.6,0.1]
[1746739118639,0.7931,2213.3,2211.2,10.62243125]
[1746739118851,4.51834447,2213.2,2212.0,0.1]
[1746739119003,0.7931,2213.3,2212.0,0.1]
[1746739119206,16.288,2213.9,2212.3,0.1]
[1746739119435,4.51609989,2214.3,2212.7,0.1]
[1746739119632,5.52321829,2214.2,2212.5,0.1]
[1746739119831,0.7931,2214.7,2212.9,0.1]
[1746739120037,0.7931,2214.7,2212.1,3.0]
[1746739120038,5.52321829,2214.0,2212.2,0.1]
[1746739120249,4.51816979,2213.3,2212.3,0.04519713]
[1746739120412,26.894,2213.2,2211.8,0.14519787]
[1746739120608,4.51886948,2213.0,2212.3,0.1]
[1746739120816,4.51686914,2214.0,2212.8,0.1]
[1746739121057,0.006498,2214.5,2213.2,0.1]
[1746739121345,0.006498,2214.5,2212.7,5.52321829]
[1746739121346,0.006498,2214.5,2213.7,0.1]
[1746739121516,0.006498,2214.5,2213.0,3.8139]
[1746739121517,4.51609989,2214.3,2213.1,0.04516974]
[1746739121704,0.006498,2214.5,2213.4,0.1]
[1746739121904,4.51854864,2213.1,2213.0,0.8139]
[1746739122104,4.51609989,2214.3,2212.9,4.51879049]
[1746739122105,4.51650783,2214.1,2212.9,4.51879049]
[1746739122339,4.51721023,2213.8,2213.0,0.14518024]
[1746739122520,0.8177,2214.2,2212.6,4.51949574]
[1746739122521,20.79650783,2214.1,2212.6,0.1]
[1746739122846,20.79650783,2214.1,2212.9,0.1]
[1746739122847,4.51671183,2214.0,2212.9,0.1]
[1746739123056,4.51671183,2214.0,2212.6,0.1]
[1746739123254,4.51972498,2212.6,2212.4,0.8139]
[1746739123452,4.51936548,2212.7,2211.7,10.04461217]
[1746739123453,3.0,2213.8,2212.1,0.1]
[1746739123743,4.52057059,2212.2,2211.9,0.1]
[1746739123917,4.51691584,2213.9,2212.3,0.1]
[1746739124122,3.006498,2214.5,2212.9,0.1]
[1746739124345,4.51721345,2213.8,2212.5,0.1]
[1746739124520,4.51956973,2212.6,2212.3,0.1]
[1746739124719,4.51887121,2213.0,2212.5,0.1]
[1746739124920,4.517528,2213.6,2212.3,3.0]
[1746739125131,4.5195801,2212.6,2211.9,0.1]
[1746739125449,16.28,2213.5,2212.1,0.1]
[1746739125655,4.51862933,2213.1,2212.4,4.51983011]
[1746739125808,10.519,2213.9,2212.5,0.04518397]
[1746739126010,10.519,2213.9,2212.5,0.14517961]
[1746739126246,10.519,2213.9,2211.9,0.1]
[1746739126247,5.52321829,2213.6,2211.9,0.1]
[1746739126445,4.52120444,2211.8,2211.7,0.9139]
[1746739126751,4.52161331,2211.6,2210.6,0.1]
[1746739126958,4.52276687,2211.1,2210.8,0.1]
[1746739127116,4.52304491,2210.9,2210.8,0.1]
[1746739127440,4.52343251,2210.8,2210.6,0.1]
[1746739127645,5.52321829,2211.8,2210.4,0.7957]
[1746739127859,4.52503415,2210.0,2209.8,0.1]
[1746739128076,5.52321829,2211.4,2209.8,0.1]
[1746739128261,5.52321829,2211.4,2209.7,0.7957]
[1746739128462,4.52462262,2210.2,2209.9,0.1]
[1746739128640,4.52447742,2210.2,2210.1,0.1]
[1746739128845,4.52222674,2211.3,2210.3,0.1]
[1746739129042,4.52282932,2211.1,2209.7,0.7957]
[1746739129272,4.52282932,2211.1,2209.5,0.1]
[1746739129273,4.52561349,2209.7,2209.5,0.1]
[1746739129477,4.52564548,2209.7,2209.5,0.1]
[1746739129784,5.52321829,2210.8,2209.5,0.1]
[1746739129785,0.8051,2211.7,2210.6,0.1]
[1746739129956,4.51916124,2212.8,2211.8,0.1]
[1746739130154,4.51960641,2212.6,2211.8,0.1]
[1746739130481,4.5232495,2210.8,2210.7,0.8112]
[1746739130695,4.52214167,2211.4,2211.0,0.1]
[1746739130905,4.52060396,2212.1,2211.7,0.1]
[1746739131059,4.51895702,2212.9,2211.7,0.1]
[1746739131263,5.32352711,2213.2,2212.3,0.1]
[1746739131485,4.51901252,2212.9,2212.3,4.62014989]
[1746739131815,4.5199571,2212.5,2212.1,0.1]
[1746739131957,9.03791404,2212.9,2211.9,0.0451977]
[1746739132158,4.51977401,2212.5,2211.7,0.04520086]
[1746739132393,4.52181777,2211.5,2211.4,0.9112]
[1746739132555,4.52026241,2212.3,2211.4,0.8112]
[1746739132556,4.5216967,2211.6,2211.4,0.8112]
[1746739132758,4.52161331,2211.6,2211.5,0.1]
[1746739132975,4.52202224,2211.4,2211.3,0.1]
[1746739133162,4.52172678,2211.6,2211.3,0.1]
[1746739133362,16.282,2212.5,2211.3,4.622162]
[1746739133563,4.52022521,2212.3,2211.6,0.1]
[1746739133780,4.52113275,2211.9,2211.6,0.1]
[1746739133998,0.8051,2213.6,2211.9,0.8112]
[1746739134208,4.5174105,2213.7,2212.7,0.1]
[1746739134375,4.51827484,2213.3,2212.7,4.6193514]
[1746739134565,4.51936548,2212.7,2212.4,0.1]
[1746739134770,4.51851413,2213.2,2211.9,0.9112]
[1746739134976,4.52076471,2212.1,2211.9,0.1]
[1746739135286,4.51895702,2212.9,2211.9,0.1]
[1746739135483,0.7903,2213.2,2211.9,0.1]
[1746739135693,4.52079566,2212.0,2211.9,0.1]
[1746739135894,0.7903,2213.2,2211.7,0.1]
[1746739136204,5.52321829,2213.0,2211.4,0.1]
[1746739136414,5.52321829,2213.0,2211.3,0.7829]
[1746739136612,4.52202224,2211.4,2211.3,0.7829]
[1746739136825,4.52243125,2211.2,2211.1,0.1]
[1746739137017,5.30051111,2212.1,2211.1,0.1]
[1746739137018,0.7799,2212.1,2211.1,0.1]
[1746739137187,4.52284034,2211.0,2210.9,0.1]
[1746739137373,4.5232495,2210.8,2210.7,0.1]
[1746739137575,4.52265269,2211.1,2210.5,0.1]
[1746739137787,4.52406804,2210.4,2210.3,0.1]
[1746739138003,3.0,2211.8,2210.3,0.1]
[1746739138229,4.52397478,2210.5,2210.3,0.1]
[1746739138429,4.52447742,2210.2,2210.1,0.1]
[1746739138696,16.282,2211.4,2209.8,0.1]
[1746739138904,4.52434228,2210.3,2210.1,0.1]
[1746739139096,16.282,2211.4,2209.6,0.14523706]
[1746739139097,4.52522784,2209.9,2209.6,0.14523706]
[1746739139407,4.52550119,2209.7,2209.6,0.1]
[1746739139608,4.52423861,2210.4,2209.6,0.1]
[1746739139933,4.52550119,2209.7,2209.6,0.1]
[1746739140120,4.52502747,2210.0,2209.6,0.1]
[1746739140306,4.52550119,2209.7,2209.6,0.1]
[1746739140507,4.52632055,2209.3,2209.2,0.1]
[1746739141020,4.52693526,2209.0,2208.9,0.8909]
[1746739141221,4.52643561,2209.3,2209.1,0.1]
[1746739141537,4.52468214,2210.1,2208.9,0.7909]
[1746739141538,4.52584523,2209.6,2209.5,0.1]
[1746739141695,4.52652543,2209.2,2209.1,0.1]
[1746739141899,4.52652543,2209.2,2208.5,4.52784394]
[1746739141900,4.52468214,2210.1,2208.7,0.1]
[1746739142136,4.52734516,2208.8,2208.7,0.1]
[1746739142495,4.5289855,2208.0,2207.8,0.8265]
[1746739142700,4.52845968,2208.3,2206.8,3.0]
[1746739142701,4.52960094,2207.7,2207.6,0.1]
[1746739142895,4.52919063,2207.9,2207.8,0.1]
[1746739143172,4.53034623,2207.4,2207.2,0.8265]
[1746739143372,16.286,2208.9,2207.8,0.1]
[1746739143373,4.52776555,2208.6,2207.8,0.1]
[1746739143533,16.286,2208.9,2207.8,0.1]
[1746739143733,16.286,2208.9,2207.2,0.8265]
[1746739143734,4.52960094,2207.7,2207.6,0.1]
[1746739144057,16.293,2209.9,2208.5,0.1]
[1746739144233,5.52321829,2209.7,2208.2,0.1]
[1746739144567,4.52837023,2208.3,2208.2,0.1]
[1746739144771,4.52960094,2207.7,2207.2,0.9265]
[1746739144976,10.021,2207.9,2207.0,0.1]
[1746739145271,10.021,2207.9,2206.1,0.7775]
[1746739145272,4.53226976,2206.4,2206.2,0.04530621]
[1746739145478,4.53247518,2206.3,2206.2,0.04530621]
[1746739145641,0.8196,2207.4,2206.3,0.1]
[1746739145841,4.53268062,2206.2,2206.1,0.1]
[1746739146075,4.53117207,2207.0,2206.4,0.1]
[1746739146242,16.293,2207.3,2206.4,0.1]
[1746739146243,4.53101082,2207.1,2206.4,0.1]
[1746739146442,16.293,2207.3,2206.4,0.1]
[1746739146673,4.53184594,2206.7,2206.6,0.1]
[1746739146836,16.293,2207.3,2206.6,0.1]
[1746739147274,4.53062703,2207.2,2206.8,0.1]
[1746739147578,4.53268062,2206.2,2206.1,0.14531751]
[1746739147879,4.53247518,2206.3,2206.2,0.1]
[1746739148176,4.53350258,2205.8,2205.7,0.1]
[1746739148478,4.53163609,2206.8,2205.7,0.1]
[1746739148779,4.53309156,2206.0,2205.9,0.1]
[1746739149077,10.7886,2207.4,2206.3,0.1]
[1746739149280,4.53144825,2206.8,2206.7,0.1]
[1746739149433,4.52874687,2208.2,2206.1,4.53275522]
[1746739149434,0.7847,2208.0,2207.4,0.1]
[1746739149634,16.302,2208.3,2207.6,0.1]
[1746739149635,20.83042329,2208.3,2207.6,0.1]
[1746739149841,4.52876423,2208.2,2207.6,0.1]
[1746739150068,16.302,2208.3,2207.2,0.1]
[1746739150248,4.53078296,2207.2,2207.1,0.1]
[1746739150434,4.52878039,2208.1,2207.1,0.1]
[1746739150640,4.52878039,2208.1,2206.5,5.35746332]
[1746739150641,20.83039327,2208.3,2207.6,0.1]
[1746739150842,4.52857531,2208.2,2207.4,0.1]
[1746739151043,16.302,2208.3,2207.7,0.1]
[1746739151244,4.52704287,2209.0,2208.5,0.1]
[1746739151542,4.52522991,2209.9,2209.6,0.1]
[1746739151747,0.8174,2210.2,2209.1,0.1]
[1746739151969,4.52468214,2210.1,2209.1,0.1]
[1746739152280,4.52468214,2210.1,2208.8,3.8042]
[1746739152281,4.52619195,2209.4,2209.2,0.1]
[1746739152449,4.52632055,2209.3,2209.2,0.1]
[1746739152649,4.52648329,2209.3,2209.2,0.1]
[1746739153202,4.52597069,2209.5,2209.2,0.1]
[1746739153352,4.52392878,2210.5,2209.6,0.1]
[1746739153547,0.8007,2210.7,2209.6,0.1]
[1746739153548,4.52550119,2209.7,2209.6,0.1]
[1746739153893,4.52550119,2209.7,2209.2,3.0]
[1746739153894,4.52591083,2209.5,2209.4,0.1]
[1746739154076,4.52775513,2208.6,2208.5,0.1]
[1746739154279,4.52816518,2208.4,2208.3,0.1]
[1746739154460,4.52652543,2209.2,2208.3,0.1]
[1746739154661,4.5266159,2209.2,2208.7,0.1]
[1746739154984,4.52740924,2208.8,2208.7,0.1]
[1746739155190,4.52635444,2209.3,2208.7,0.1]
[1746739155398,16.306,2209.4,2208.6,0.1]
[1746739155692,4.52816518,2208.4,2208.3,0.1]
[1746739155850,4.52700454,2209.0,2208.7,0.1]
[1746739156046,4.52643659,2209.3,2209.2,0.1]
[1746739156263,4.5271402,2208.9,2208.6,0.1]
[1746739156584,4.5271402,2208.9,2207.9,0.04527375]
[1746739156585,4.5289855,2208.0,2207.9,0.04527375]
[1746739156751,4.52820831,2208.4,2207.7,0.9159]
[1746739156953,4.52939577,2207.8,2207.7,0.1]
[1746739157147,4.53001132,2207.5,2207.4,0.1]
[1746739157388,4.52980612,2207.6,2207.5,0.1]
[1746739157592,4.52970319,2207.7,2207.5,0.1]
[1746739157773,4.52919063,2207.9,2207.5,0.1]
[1746739157974,4.52980612,2207.6,2207.5,0.1]
[1746739158392,4.52871089,2208.2,2206.9,0.8165]
[1746739158393,4.53062703,2207.2,2206.9,0.1]
[1746739158593,4.5310376,2207.0,2206.9,0.1]
[1746739158982,4.53226976,2206.4,2206.3,0.1]
[1746739159310,4.53309156,2206.0,2205.9,0.1]
[1746739160108,5.33701924,2205.5,2203.9,0.8265]
[1746739160311,5.33701924,2205.5,2204.9,0.1]
[1746739160312,4.53514739,2205.0,2204.9,0.1]
[1746739160526,4.58048845,2205.0,2204.9,0.1]
[1746739160669,4.58048845,2205.0,2204.4,0.1]
[1746739160670,4.536176,2204.5,2204.4,0.1]
[1746739161016,4.53658757,2204.3,2204.2,0.1]
[1746739161193,4.53644828,2204.4,2204.2,0.1]
[1746739161395,4.53535307,2204.9,2204.2,0.1]
[1746739161581,0.04534106,2205.0,2203.7,3.0]
[1746739161582,4.53598213,2204.6,2204.4,0.1]
[1746739161784,0.04534106,2204.5,2203.8,0.04536315]
[1746739161975,4.53735796,2204.0,2203.7,3.0]
[1746739162177,5.29952275,2203.7,2203.6,3.4598335]
[1746739162369,4.53864657,2203.3,2203.2,0.04538028]
[1746739162569,4.53988287,2202.7,2202.6,6.45900791]
[1746739162983,4.58522393,2202.7,2202.6,6.45900791]
[1746739163183,14.40222393,2202.7,2202.6,6.45900791]
[1746739163389,4.53988287,2202.7,2202.6,6.45900791]
[1746739163676,4.58522393,2202.7,2201.4,4.54250835]
[1746739163878,4.53898259,2203.2,2201.7,6.76346346]
[1746739164072,0.04534106,2203.1,2201.6,0.8095]
[1746739164276,4.53864657,2203.3,2201.1,0.8095]
[1746739164489,4.54291469,2201.3,2201.1,0.8095]
[1746739164712,0.8123,2201.9,2200.2,0.7746]
[1746739165014,0.04534106,2201.8,2200.3,0.04543783]
[1746739165311,0.04534106,2201.8,2200.2,0.7746]
[1746739165511,4.54331747,2201.1,2200.3,4.54465817]
[1746739165817,4.54331747,2201.1,2200.2,5.31945204]
[1746739165818,0.04534106,2201.0,2200.2,0.7746]
[1746739165993,4.54470975,2200.4,2200.0,3.61962458]
[1746739166178,4.54338936,2201.0,2200.0,3.61962458]
[1746739166378,0.04534106,2200.9,2200.0,3.61962458]
[1746739166677,4.54438475,2200.6,2200.1,0.04543861]
[1746739167014,4.58980081,2200.5,2200.0,3.61962458]
[1746739167215,4.54524794,2200.1,2200.0,3.61962458]
[1746739167881,4.59046995,2200.2,2200.0,3.61962458]
[1746739168082,0.04534106,2200.6,2200.0,3.0]
[1746739168297,0.40204401,2200.8,2200.1,0.0454462]
[1746739168495,0.40204401,2200.8,2200.3,4.54469621]
[1746739168691,0.40204401,2200.8,2199.9,3.0]
[1746739168891,4.94589215,2200.8,2199.8,3.0]
[1746739169129,0.40204401,2200.8,2199.9,0.0454442]
[1746739169338,0.40204401,2200.8,2199.9,0.45912416]
[1746739169634,0.40204401,2200.8,2200.7,7.54400872]
[1746739169838,4.5856717,2202.5,2200.9,4.5435958]
[1746739170041,0.04534106,2202.5,2201.0,3.0]
[1746739170192,0.04534106,2202.5,2201.1,0.79977347]
[1746739170392,4.54063492,2202.4,2201.1,0.75435958]
[1746739170591,4.54151943,2202.0,2200.8,4.54380225]
[1746739170829,4.54172762,2201.9,2201.2,4.54297056]
[1746739171036,0.04534106,2202.6,2201.1,3.0]
[1746739171236,4.53844315,2203.4,2202.7,4.53975105]
[1746739171540,5.307398,2205.0,2203.4,3.0]
[1746739171737,0.04534106,2205.2,2204.0,3.0]
[1746739171938,4.53411924,2205.5,2204.2,3.0]
[1746739172238,0.04534106,2206.1,2204.9,4.53535307]
[1746739172539,2.93956802,2205.5,2205.1,0.7868]
[1746739172838,2.93956802,2205.5,2205.4,7.53432483]
[1746739173037,3.82143843,2206.2,2206.1,4.53288608]
[1746739173284,4.70330884,2206.5,2206.4,7.53226976]
[1746739173484,3.38050322,2206.5,2206.4,3.0]
[1746739173841,3.38050322,2206.5,2206.4,7.53226976]
[1746739174177,3.38050322,2206.5,2206.4,3.0]
[1746739174589,3.38050322,2206.5,2206.4,7.53226976]
[1746739174785,5.62540971,2206.7,2206.6,10.53185896]
[1746739175078,5.62540971,2206.7,2206.6,6.0]
[1746739175233,5.62540971,2206.7,2205.6,9.90535867]
[1746739175433,5.62540971,2206.7,2205.1,12.90535867]
[1746739175434,4.53185896,2206.6,2205.1,12.90535867]
[1746739175664,4.53251075,2206.3,2205.5,4.53397449]
[1746739175832,5.62540971,2206.7,2205.4,3.0]
[1746739176048,5.62540971,2206.7,2205.7,3.0]
[1746739176252,8.02356426,2206.9,2206.8,3.0]
[1746739176477,8.02356426,2206.9,2206.8,8.28463415]
[1746739176996,8.02356426,2206.9,2206.8,15.19825757]
[1746739177294,4.52775513,2208.6,2207.1,3.0]
[1746739177585,4.52894431,2208.1,2207.2,7.53061441]
[1746739177882,0.8057,2209.1,2207.3,0.04528386]
[1746739178085,4.52933243,2207.9,2207.1,4.53065828]
[1746739178270,4.57297112,2208.7,2207.2,3.0]
[1746739178470,4.57297112,2208.7,2207.4,4.53001452]
[1746739178471,4.52875728,2208.2,2207.4,4.53001452]
[1746739178672,0.8057,2209.1,2207.8,3.0]
[1746739178874,0.8057,2209.9,2208.7,3.0]
[1746739179077,4.52550119,2209.7,2208.3,3.0]
[1746739179278,16.332,2210.2,2208.8,3.0]
[1746739179591,16.332,2210.2,2208.9,0.04524972]
[1746739179592,4.5252964,2209.8,2208.9,0.04524972]
[1746739179796,0.7975,2209.6,2206.6,13.108]
[1746739179953,0.7975,2209.6,2205.0,52.53512781]
[1746739179954,4.53144825,2206.8,2206.7,0.04530004]
[1746739180154,0.04534106,2207.2,2205.2,0.33604728]
[1746739180464,0.04534106,2207.5,2206.0,4.53288619]
[1746739180671,0.7975,2207.7,2206.1,0.45328862]
[1746739180892,16.325,2208.6,2206.4,4.53226976]
[1746739180893,4.53082863,2207.2,2206.4,4.53226976]
[1746739181093,4.53342979,2205.9,2205.2,4.87072853]
[1746739181281,0.04534106,2206.6,2204.8,4.53539344]
[1746739181482,0.04534106,2206.6,2204.0,4.537069]
[1746739181483,4.53566544,2204.8,2204.0,4.537069]
[1746739181816,4.53350258,2205.8,2204.1,0.33944823]
[1746739181817,0.04534106,2205.6,2204.1,0.33944823]
[1746739182315,4.53350258,2205.8,2204.2,0.04535331]
[1746739182498,4.53350258,2205.8,2204.1,3.67412113]
[1746739182499,0.04534106,2205.7,2204.1,3.67412113]
[1746739182705,4.53526723,2205.0,2204.1,3.67412113]
[1746739182882,0.04534106,2205.7,2204.1,3.67412113]
[1746739182883,0.04534106,2205.7,2204.1,0.33394482]
[1746739183079,4.53391367,2205.6,2203.9,4.53724976]
[1746739183303,4.53391367,2205.6,2203.5,16.625]
[1746739183304,4.53453044,2205.3,2203.5,16.625]
[1746739183509,4.53514739,2205.0,2203.5,16.625]
[1746739183729,0.04534106,2205.2,2203.5,16.96575449]
[1746739183730,0.04534106,2204.9,2203.5,16.96575449]
[1746739183928,4.53680942,2204.2,2203.7,3.0]
[1746739184144,0.04534106,2205.2,2203.9,4.53741095]
[1746739184145,4.53579675,2204.7,2203.9,4.53741095]
[1746739184356,4.53494172,2205.1,2203.8,3.0]
[1746739184650,4.53598345,2204.6,2203.8,7.58294672]
[1746739184803,4.53473607,2205.2,2203.8,3.04535047]
[1746739185009,0.04534106,2205.5,2203.9,0.5800252]
[1746739185333,4.59080812,2205.5,2204.1,4.53680497]
[1746739185537,4.53631301,2204.5,2204.2,0.02268972]
[1746739185730,0.05668888,2205.5,2203.7,4.73018932]
[1746739185731,1.46828081,2205.5,2204.1,4.53687727]
[1746739185918,1.52496893,2205.5,2203.9,4.53725731]
[1746739186120,0.7975,2205.9,2203.9,4.53725731]
[1746739186121,0.8121,2206.4,2205.0,4.53498899]
[1746739186335,4.53288608,2206.1,2204.4,10.045]
[1746739186534,0.05666963,2206.0,2204.6,4.53578653]
[1746739186709,0.05666963,2206.0,2204.2,4.53662955]
[1746739186913,0.05666963,2206.0,2204.3,4.53650832]
[1746739186914,4.53526745,2205.0,2204.3,4.53650832]
[1746739187143,4.53536632,2204.9,2204.1,4.53699922]
[1746739187443,4.53494386,2205.1,2204.1,3.09039992]
[1746739187444,4.53494172,2205.1,2204.1,3.09039992]
[1746739187655,4.53494172,2205.1,2203.6,10.002]
[1746739187656,0.05668678,2205.0,2203.6,10.002]
[1746739188023,4.53649482,2204.4,2203.8,4.56023752]
[1746739188225,0.05670068,2205.0,2203.8,0.02270921]
[1746739188444,4.53600837,2204.6,2203.8,0.02270079]
[1746739188654,4.53535307,2204.9,2204.3,4.53657665]
[1746739188655,4.53548775,2204.9,2204.3,4.53657665]
[1746739188947,4.53460859,2205.3,2204.6,4.53585858]
[1746739189149,4.53391367,2205.6,2204.7,0.02266989]
[1746739189309,0.05668102,2205.7,2204.2,3.55]
[1746739189511,4.53464474,2205.3,2204.8,3.0]
[1746739189710,4.53464474,2205.3,2204.3,0.02266748]
[1746739189711,4.53484728,2205.2,2204.7,3.0]
[1746739189914,10.002,2206.2,2204.7,3.0]
[1746739189915,4.53252549,2206.3,2205.2,4.534847]
[1746739190223,4.53309156,2206.0,2204.7,4.05359676]
[1746739190421,0.05667213,2205.9,2203.8,3.0]
[1746739190624,16.329,2206.0,2203.9,4.53727044]
[1746739190833,4.53669498,2204.3,2203.9,0.34679955]
[1746739191011,4.53666868,2204.3,2203.6,4.53798911]
[1746739191211,4.5364817,2204.4,2203.8,4.53757131]
[1746739191512,4.53710898,2204.1,2203.5,4.83814503]
[1746739191717,4.53710898,2204.1,2203.6,0.93765531]
[1746739191912,0.05670629,2204.7,2203.7,4.53782275]
[1746739192222,0.05669998,2205.1,2202.7,26.23435867]
[1746739192551,14.36784997,2205.0,2202.7,16.329]
[1746739192734,4.53875648,2203.3,2202.7,16.329]
[1746739192938,0.05672431,2204.6,2203.5,4.53823462]
[1746739193151,4.53507143,2205.1,2203.3,4.538756]
[1746739193152,4.53555878,2204.8,2203.9,4.53728674]
[1746739193314,0.05669667,2205.0,2204.0,0.02270119]
[1746739193652,4.53799966,2203.7,2202.7,4.53988287]
[1746739193825,4.53474394,2205.2,2203.7,4.53770316]
[1746739193826,4.53674924,2204.3,2203.7,4.53770316]
[1746739194012,4.53589378,2204.7,2203.8,4.56029236]
[1746739194212,0.05669836,2204.6,2203.0,0.3338303]
[1746739194452,4.53638178,2204.4,2202.1,14.44640098]
[1746739194750,4.53716269,2204.1,2202.7,4.53976768]
[1746739194954,0.05672247,2204.0,2202.1,4.87824748]
[1746739195150,4.53954747,2202.9,2202.1,0.33726834]
[1746739195454,9.784,2204.2,2201.8,9.791]
[1746739195455,4.53782275,2203.7,2202.9,5.546137]
[1746739195751,4.53864401,2203.4,2202.4,4.54050127]
[1746739196052,4.53756523,2203.9,2202.6,4.53991326]
[1746739196256,4.53782275,2203.7,2202.5,3.0]
[1746739196422,0.0567345,2203.6,2202.5,3.0]
[1746739196747,20.8667314,2204.3,2202.1,4.88644035]
[1746739196748,0.05672639,2204.2,2202.7,0.55]
[1746739196948,4.53816322,2203.6,2203.0,3.0]
[1746739197247,4.53856177,2203.4,2203.1,3.0]
[1746739197550,0.05672639,2204.2,2202.8,4.53953439]
[1746739197551,4.53774582,2203.8,2202.8,7.53962018]
[1746739197722,4.59353475,2204.2,2202.9,0.80896202]
[1746739197723,0.05672726,2204.2,2202.9,0.80896202]
[1746739197912,4.53812768,2203.6,2203.2,3.0]
[1746739198118,4.537225,2204.0,2202.9,5.34830941]
[1746739198119,4.53721811,2204.0,2202.9,3.80896202]
[1746739198318,4.53837826,2203.5,2203.0,4.53925242]
[1746739198515,4.53761684,2203.8,2202.8,3.0]
[1746739198841,4.53880648,2203.3,2202.6,4.54000673]
[1746739199158,4.53835065,2203.5,2203.0,4.53921675]
[1746739199356,4.59421879,2203.9,2203.4,3.0]
[1746739199555,4.53727414,2204.0,2202.9,4.53937059]
[1746739199556,4.53804689,2203.6,2203.0,3.0]
[1746739199720,4.53761684,2203.8,2202.8,4.53956719]
[1746739199909,4.53681245,2204.2,2202.5,0.55]
[1746739199910,0.0567245,2203.7,2202.5,0.55]
[1746739200112,4.53720508,2204.0,2202.9,3.0]
[1746739200352,4.53720508,2204.0,2202.1,0.34536987]
[1746739200353,0.05672839,2203.9,2202.1,0.34536987]
[1746739200556,0.7586,2203.4,2201.5,4.54225391]
[1746739200723,4.59540375,2203.3,2201.4,16.33]
[1746739200929,4.54002787,2202.7,2201.9,3.02280584]
[1746739201249,0.7586,2203.4,2201.9,3.02280584]
[1746739201456,0.05674567,2203.7,2202.1,3.0]
[1746739201618,0.05673341,2203.7,2202.0,1.28138058]
[1746739201819,4.54002022,2202.7,2202.0,1.28138058]
[1746739202014,4.53978268,2202.8,2202.1,3.02280478]
[1746739202223,0.05674669,2203.1,2202.2,0.43041854]
[1746739202527,4.5396875,2202.8,2202.3,4.56338719]
[1746739202714,4.53830024,2203.5,2202.3,4.56338719]
[1746739202715,4.53802868,2203.6,2202.3,0.0228045]
[1746739203057,4.53844059,2203.4,2202.0,1.28138058]
[1746739203240,4.53970681,2202.8,2202.3,4.54061297]
[1746739203444,4.54019173,2202.6,2202.4,0.02279862]
[1746739203646,9.597,2203.8,2202.0,1.28138058]
[1746739203647,0.8189,2203.9,2202.8,3.0]
[1746739203957,4.53886411,2203.2,2202.7,7.53979365]
[1746739204161,0.05673477,2203.8,2202.0,1.28138058]
[1746739204361,4.53871693,2203.3,2202.7,4.539815]
[1746739204565,4.53782275,2203.7,2202.8,3.02277719]
[1746739204717,0.0567347,2203.6,2202.1,0.4623712]
[1746739204917,4.53869634,2203.3,2202.8,3.0]
[1746739205116,0.05673367,2203.6,2202.9,4.5621843]
[1746739205318,4.53838236,2203.5,2203.0,4.53920994]
[1746739205514,0.05672854,2203.8,2203.1,0.02276493]
[1746739205857,4.53720508,2204.0,2202.9,0.45621843]
[1746739206146,4.53321785,2206.0,2204.3,5.979986]
[1746739206462,0.7589,2206.3,2203.8,7.53758207]
[1746739206463,4.53350258,2205.8,2203.8,7.53758207]
[1746739206621,0.005,2206.4,2203.4,4.53844059]